bitfinex-derivatives/quotes_ETHF0:USTF0_20250105
["timestamp","ask_amount","ask_price","bid_price","bid_amount"]
[1736070919304,3.48496,3608.8,3608.7,2.7204]
[1736070919605,10.31490754,3608.8,3608.7,2.7204]
[1736070924705,10.03774754,3608.8,3608.3,0.4243]
[1736070925009,0.27717,3608.7,3608.6,2.7204]
[1736070926404,0.2772,3608.4,3608.0,0.4109]
[1736070926606,0.27725,3607.8,3607.5,0.27726]
[1736070926798,0.27724,3607.9,3607.7,2.7204]
[1736070927205,7.01706163,3608.1,3607.7,2.7204]
[1736070927610,0.27724,3607.9,3607.7,2.7204]
[1736070927808,7.01706163,3608.1,3607.7,2.7204]
[1736070928004,0.27724,3607.8,3607.7,2.7204]
[1736070928412,0.27724,3607.9,3607.7,2.7204]
[1736070928713,0.27724,3607.9,3607.6,1.57885]
[1736070928921,0.27723,3607.9,3607.8,2.7204]
[1736070932814,0.27725,3607.7,3607.6,1.3016]
[1736070933216,0.27725,3607.7,3607.6,4.022]
[1736070945012,0.6932814,3607.7,3607.6,4.022]
[1736070952420,7.70080302,3607.7,3607.6,0.4425]
[1736070952619,0.27728,3607.3,3607.2,0.8569]
[1736070952825,0.27728,3607.3,3607.2,1.3042]
[1736070953028,0.27728,3607.3,3607.2,4.0246]
[1736070954221,0.27728,3607.3,3607.2,3.1677]
[1736070954423,0.27728,3607.3,3607.2,3.5885]
[1736070955623,0.69337249,3607.3,3607.2,3.5885]
[1736070963020,0.41609249,3607.3,3607.2,3.86579]
[1736070964629,0.27727,3607.4,3607.3,0.27728]
[1736070964829,0.27727,3607.4,3607.3,2.99768]
[1736070965529,0.27727,3607.4,3607.3,2.7204]
[1736070969135,3.52215325,3607.4,3607.3,2.7204]
[1736070971930,0.69334655,3607.4,3607.3,2.7204]
[1736070973137,0.27727,3607.4,3607.3,2.7204]
[1736070974738,0.69334655,3607.4,3607.3,2.7204]
[1736070976631,5.01270825,3607.4,3607.3,2.7204]
[1736070976833,7.11089208,3607.4,3607.3,2.7204]
[1736070977037,0.27728,3607.3,3607.2,0.8681]
[1736070977236,0.27731,3606.9,3606.8,4.78846402]
[1736070977739,0.27731,3606.9,3606.8,3.1546]
[1736070978333,1.29263834,3606.9,3606.8,3.1546]
[1736070979030,1.70871489,3606.9,3606.8,3.1546]
[1736070980329,0.69338655,3606.9,3606.8,3.1546]
[1736070981638,5.02137605,3606.9,3606.8,3.1546]
[1736070984041,5.02137605,3606.9,3606.8,2.7204]
[1736070986543,0.69338655,3606.9,3606.8,2.7204]
[1736070991045,7.76456082,3606.9,3606.8,2.7204]
[1736070992246,0.27736,3606.2,3606.1,3.2078]
[1736070992446,0.27736,3606.2,3606.1,0.8524]
[1736070992648,0.27736,3606.2,3606.1,3.5728]
[1736070993045,0.27736,3606.2,3606.1,2.7204]
[1736070993046,2.377316,3606.2,3606.1,2.7204]
[1736070993548,0.27736,3606.2,3606.1,2.7204]
[1736070993849,0.41607655,3606.9,3606.1,3.2078]
[1736070994068,0.41607655,3606.9,3606.8,3.48512]
[1736070994649,2.099956,3607.5,3607.0,0.2773]
[1736070994849,0.27729,3607.2,3607.1,1.2674]
[1736070995452,0.27729,3607.2,3607.1,1.5447]
[1736070995855,2.099956,3607.5,3607.1,1.2674]
[1736070996057,3.24463577,3607.3,3607.1,1.2674]
[1736070996260,0.27729,3607.2,3607.1,1.2674]
[1736070997456,3.52192577,3607.2,3607.1,1.2674]
[1736070998356,5.62188177,3607.2,3607.1,1.2674]
[1736070998557,2.377246,3607.2,3607.1,1.2674]
[1736070998758,0.27729,3607.2,3607.1,1.2674]
[1736070999068,3.52191577,3607.3,3607.1,1.2674]
[1736070999250,3.52191577,3607.3,3607.2,0.27729]
[1736070999454,3.52191577,3607.3,3607.1,1.2674]
[1736070999654,3.52191577,3607.3,3607.1,1.54469]
[1736071000051,3.52191577,3607.3,3607.2,0.27729]
[1736071000255,3.52191577,3607.3,3607.1,1.2674]
[1736071000661,3.24463577,3607.3,3607.2,5.585046]
[1736071001264,1.89123577,3607.3,3607.2,5.585046]
[1736071001569,1.89123577,3607.5,3607.4,0.27727]
[1736071002262,1.21453577,3607.5,3607.4,0.27727]
[1736071002864,0.27722,3608.1,3607.6,0.27725]
[1736071002865,0.27725,3607.8,3607.6,0.27725]
[1736071003067,0.27725,3607.8,3607.6,3.2078]
[1736071003264,0.69325657,3608.0,3607.7,0.27725]
[1736071003466,0.41602657,3608.0,3607.6,3.2078]
[1736071003672,0.41602657,3608.0,3607.9,0.27723]
[1736071004562,4.32618103,3608.3,3608.1,0.27721]
[1736071004761,4.32618103,3608.3,3608.2,0.27721]
[1736071006060,4.32618103,3608.6,3608.1,0.4272]
[1736071006264,4.32618103,3608.6,3608.4,3.2078]
[1736071006463,4.60336103,3608.6,3608.4,3.48499]
[1736071006667,4.60336103,3608.6,3608.4,3.2078]
[1736071006869,4.32618103,3608.6,3608.5,0.27719]
[1736071007165,0.27718,3608.6,3608.5,0.4366]
[1736071008060,0.72307,3608.7,3608.5,0.71378]
[1736071008664,0.27718,3608.6,3608.5,0.71378]
[1736071008864,0.4459,3608.7,3608.5,0.4366]
[1736071009267,0.71216,3608.9,3608.8,0.27716]
[1736071009569,4.32618103,3609.0,3608.5,0.4366]
[1736071009763,4.32618103,3609.0,3608.9,0.27716]
[1736071009961,0.4433,3609.1,3609.0,0.27715]
[1736071010172,4.32618103,3609.2,3609.1,0.27714]
[1736071010472,1.08718103,3609.2,3609.1,0.69604]
[1736071011374,0.72767,3610.1,3609.1,0.4189]
[1736071011562,0.4506,3610.1,3609.9,3.48487]
[1736071011767,0.4506,3610.1,3609.9,3.48488]
[1736071012165,0.72767,3610.1,3609.9,3.2078]
[1736071012366,0.4506,3610.1,3609.9,3.2078]
[1736071012670,0.27707,3610.0,3609.9,3.2078]
[1736071013062,0.4506,3610.1,3609.9,3.2078]
[1736071013268,0.27707,3610.0,3609.9,3.2078]
[1736071016270,0.4506,3610.1,3609.5,3.2078]
[1736071016473,0.27709,3609.8,3609.5,3.48491]
[1736071016873,0.4251,3609.7,3609.6,0.2771]
[1736071017483,0.72767,3610.1,3609.5,3.2078]
[1736071017776,0.27708,3609.9,3609.7,0.27709]
[1736071017974,0.27708,3610.0,3609.7,0.27709]
[1736071018176,0.27708,3610.0,3609.8,0.27709]
[1736071018767,0.70825,3610.3,3609.9,3.2078]
[1736071018967,0.4312,3610.3,3609.9,3.2078]
[1736071019168,0.4312,3610.3,3610.2,0.27706]
[1736071019578,0.70825,3610.3,3610.1,0.27706]
[1736071019771,0.4312,3610.3,3609.9,3.48488]
[1736071019975,0.27706,3610.2,3610.0,0.27707]
[1736071020172,0.70826,3610.3,3610.0,0.27707]
[1736071020377,0.70826,3610.3,3609.9,3.2078]
[1736071020574,0.27707,3610.0,3609.9,3.2078]
[1736071021882,0.27709,3609.8,3609.6,2.377056]
[1736071022881,0.4143,3609.7,3609.6,2.377056]
[1736071023385,0.4235,3609.9,3609.6,2.099956]
[1736071023589,0.864,3610.4,3609.8,3.2078]
[1736071023783,0.864,3610.4,3610.1,0.27706]
[1736071023982,0.27706,3610.2,3610.1,0.27706]
[1736071024288,0.27706,3610.3,3610.1,0.27706]
[1736071024479,0.27707,3610.1,3609.9,2.821236]
[1736071024885,0.27707,3610.1,3610.0,0.27707]
[1736071025085,0.27707,3610.1,3609.9,2.544156]
[1736071025286,0.27707,3610.0,3609.9,2.544156]
[1736071025584,0.27707,3610.0,3609.9,2.099956]
[1736071026088,0.27708,3609.9,3609.8,3.2078]
[1736071026481,0.27708,3609.9,3609.8,3.48489]
[1736071027286,0.27708,3609.9,3609.8,3.2078]
[1736071027490,0.27708,3609.9,3609.8,3.48489]
[1736071029092,0.864,3610.4,3609.8,3.2078]
[1736071029296,0.27708,3610.0,3609.9,0.27708]
[1736071029483,0.864,3610.4,3609.9,2.099956]
[1736071029782,5.40772629,3612.0,3610.3,5.307756]
[1736071029988,5.40772629,3612.0,3611.5,2.099956]
[1736071029989,0.27695,3611.6,3611.5,2.099956]
[1736071030185,0.27695,3611.6,3611.5,3.2078]
[1736071031891,0.27698,3611.2,3611.1,3.2078]
[1736071032084,0.27698,3611.2,3611.1,1.8556]
[1736071032286,0.27704,3610.5,3610.2,0.27705]
[1736071032484,0.4265,3611.1,3610.4,0.27704]
[1736071032686,0.27703,3610.6,3610.4,0.27704]
[1736071033190,6.85637402,3611.0,3610.4,0.27704]
[1736071033399,0.27703,3610.7,3610.4,0.27704]
[1736071033887,5.35074446,3612.0,3610.5,5.307756]
[1736071034093,0.27696,3611.5,3611.3,3.48477]
[1736071034289,0.27696,3611.5,3611.3,3.2078]
[1736071034488,0.27697,3611.4,3611.3,3.2078]
[1736071034885,2.099956,3611.4,3610.9,3.2078]
[1736071035085,0.27699,3611.1,3610.8,0.27701]
[1736071035289,0.4171,3611.0,3610.9,0.277]
[1736071035490,0.8474,3611.3,3611.2,0.27698]
[1736071036092,0.4137,3611.3,3611.2,0.27698]
[1736071036294,0.4171,3611.5,3611.1,0.4172]
[1736071036490,0.27695,3611.6,3611.3,0.27697]
[1736071036689,0.8308,3611.8,3611.4,0.27696]
[1736071036993,0.27695,3611.7,3611.4,0.27696]
[1736071037189,8.01711542,3611.8,3611.6,0.27695]
[1736071037386,2.930756,3611.8,3611.2,0.27698]
[1736071037588,0.27697,3611.4,3611.1,0.4172]
[1736071037989,0.27697,3611.3,3611.1,0.4172]
[1736071038189,0.4409,3611.2,3610.6,5.757556]
[1736071038392,0.8518,3611.1,3610.9,0.277]
[1736071038595,0.4131,3611.1,3610.9,0.277]
[1736071038793,0.4131,3611.1,3611.0,0.7016]
[1736071038994,3.2078,3612.0,3611.0,3.6324]
[1736071039296,0.27696,3611.5,3611.1,0.27699]
[1736071039607,0.27696,3611.5,3611.2,0.27698]
[1736071040594,0.854,3611.8,3611.0,3.6324]
[1736071040794,0.27697,3611.4,3611.1,0.27699]
[1736071041096,0.27698,3611.2,3611.0,3.6324]
[1736071041294,0.27698,3611.3,3611.0,3.9094]
[1736071041494,0.27699,3611.1,3611.0,3.6324]
[1736071042293,0.8596,3611.2,3611.0,3.6324]
[1736071042605,0.27699,3611.1,3611.0,3.6324]
[1736071044399,1.13658,3611.2,3611.0,3.9094]
[1736071044596,0.27699,3611.1,3611.0,3.6324]
[1736071045394,1.13658,3611.2,3611.1,0.27699]
[1736071045590,1.13658,3611.2,3611.0,3.6324]
[1736071045795,0.8596,3611.2,3611.0,3.6324]
[1736071045996,0.27694,3611.7,3611.1,0.27698]
[1736071046197,0.27698,3611.3,3611.1,0.27698]
[1736071046402,7.89678952,3611.7,3611.0,3.6324]
[1736071046602,0.27697,3611.4,3611.2,0.27698]
[1736071046993,0.27697,3611.4,3611.3,0.27697]
[1736071047198,1.12554,3611.7,3611.3,2.099956]
[1736071047405,1.12554,3611.7,3611.5,0.27695]
[1736071047907,1.12554,3611.7,3611.6,0.4156]
[1736071049406,0.27697,3611.3,3611.1,0.27698]
[1736071049607,0.8486,3611.7,3611.1,0.4156]
[1736071049807,0.27697,3611.4,3611.2,0.27698]
[1736071050411,0.4252,3611.7,3611.4,0.27696]
[1736071050611,0.4252,3611.7,3611.1,0.4156]
[1736071050612,3.00354446,3611.9,3611.2,0.4293]
[1736071050811,0.27695,3611.7,3611.5,0.27695]
[1736071051006,0.27695,3611.7,3611.4,3.2078]
[1736071051206,0.27695,3611.7,3611.6,0.27695]
[1736071051403,0.27695,3611.7,3611.4,3.2078]
[1736071051710,0.27694,3611.8,3611.6,0.27694]
[1736071052014,0.4351,3611.9,3611.4,3.2078]
[1736071052204,0.4351,3611.9,3611.5,0.27695]
[1736071052406,0.27695,3611.6,3611.5,0.27695]
[1736071052712,0.27696,3611.5,3611.4,3.2078]
[1736071053510,0.27696,3611.5,3611.4,3.48477]
[1736071053914,0.27696,3611.5,3611.4,3.2078]
[1736071054310,0.27696,3611.5,3611.4,3.48477]
[1736071055223,0.27696,3611.5,3611.4,3.2078]
[1736071055413,0.27696,3611.5,3611.4,3.48477]
[1736071055718,0.27696,3611.5,3611.4,3.2078]
[1736071059317,2.099956,3611.7,3611.0,3.2078]
[1736071059518,0.27699,3611.1,3611.0,3.2078]
[1736071061013,0.27699,3611.1,3611.0,3.4848]
[1736071062422,0.27699,3611.1,3611.0,3.2078]
[1736071062619,0.277,3610.9,3610.8,0.27701]
[1736071067424,0.27702,3610.8,3610.7,0.27702]
[1736071068427,2.14294446,3611.2,3610.6,3.2078]
[1736071068620,0.27702,3610.7,3610.6,3.48482]
[1736071068923,0.27702,3610.7,3610.6,3.2078]
[1736071070221,2.41996446,3610.7,3610.6,3.2078]
[1736071070422,2.41996446,3610.7,3610.2,0.68926]
[1736071070423,0.27705,3610.3,3610.2,0.68926]
[1736071073327,0.27705,3610.4,3610.3,0.27705]
[1736071073526,2.14294446,3610.5,3610.2,0.4122]
[1736071073830,0.27705,3610.4,3610.3,0.27705]
[1736071075026,2.14294446,3610.5,3610.4,0.27704]
[1736071077228,2.14294446,3610.6,3610.5,0.27703]
[1736071077427,2.41997446,3610.6,3610.5,3.48483]
[1736071078025,1.46684446,3610.6,3610.5,3.48483]
[1736071079834,0.27699,3611.1,3611.0,0.27699]
[1736071080332,0.4245,3611.2,3610.9,3.2078]
[1736071080533,0.70148,3611.2,3611.1,0.27699]
[1736071081128,0.4245,3611.2,3610.9,3.2078]
[1736071081326,0.27699,3611.1,3611.0,0.27699]
[1736071081531,0.277,3611.0,3610.9,3.4848]
[1736071081829,0.70149,3611.2,3610.9,3.2078]
[1736071082031,0.27699,3611.1,3611.0,0.27699]
[1736071083139,3.66303377,3611.2,3610.9,3.2078]
[1736071083340,0.277,3611.0,3610.9,3.4848]
[1736071083637,0.27699,3611.1,3611.0,0.27699]
[1736071089741,3.66303377,3611.2,3611.1,0.27699]
[1736071090738,3.94001377,3611.2,3611.1,0.27699]
[1736071090939,0.70148,3611.2,3611.1,0.27699]
[1736071091236,0.27698,3611.2,3611.0,0.277]
[1736071091540,0.27698,3611.2,3611.1,0.27699]
[1736071091738,3.23853377,3611.3,3610.9,3.2078]
[1736071091934,0.277,3611.0,3610.9,3.4848]
[1736071092538,0.277,3611.0,3610.9,3.2078]
[1736071094037,4.70716375,3611.0,3610.9,3.2078]
[1736071094231,4.70716375,3611.0,3610.9,3.4848]
[1736071094629,4.70716375,3611.0,3610.9,3.9087]
[1736071095536,0.4478,3611.1,3611.0,0.277]
[1736071096638,0.277,3611.0,3610.9,3.2078]
[1736071098033,0.7079,3611.0,3610.9,3.2078]
[1736071098543,3.95295082,3611.0,3610.9,3.2078]
[1736071099738,1.12357393,3611.0,3610.9,3.2078]
[1736071099937,0.27701,3610.8,3610.7,3.2078]
[1736071102245,0.27701,3610.8,3610.7,3.48482]
[1736071102445,3.522721,3610.8,3610.7,3.48482]
[1736071103443,3.522721,3610.8,3610.7,3.2078]
[1736071103837,3.522721,3610.8,3610.7,3.48482]
[1736071104042,3.93840071,3610.8,3610.7,3.2078]
[1736071107648,4.98416553,3610.8,3610.7,3.2078]
[1736071108851,4.56848582,3610.8,3610.7,3.2078]
[1736071109256,4.29147582,3610.8,3610.7,3.2078]
[1736071109554,4.29147582,3610.8,3610.7,3.48482]
[1736071110750,3.52382555,3611.2,3610.7,7.56206402]
[1736071110951,3.24683555,3611.2,3611.0,0.27699]
[1736071111149,3.52381555,3611.2,3611.0,0.27699]
[1736071111347,3.52381555,3611.2,3611.1,0.4466]
[1736071111646,3.52381555,3611.2,3611.1,0.72359]
[1736071111949,3.95911555,3611.2,3611.1,0.72359]
[1736071113151,3.95911555,3611.2,3611.1,0.4466]
[1736071114451,1.12792792,3611.2,3611.1,0.4466]
[1736071114757,1.12792792,3611.2,3611.1,0.72359]
[1736071115051,1.12792792,3611.2,3611.1,0.4466]
[1736071115252,0.27699,3611.1,3611.0,0.27699]
[1736071115954,4.72677582,3611.2,3611.1,0.27699]
[1736071116758,5.00375582,3611.2,3611.1,0.27699]
[1736071117152,3.95765928,3611.2,3611.1,0.27699]
[1736071118959,1.12790976,3611.2,3611.1,0.27699]
[1736071119161,0.41562976,3611.2,3611.1,0.27699]
[1736071119865,5.68468629,3611.5,3610.9,7.87022549]
[1736071119866,4.29147582,3611.4,3610.9,7.87022549]
[1736071120163,4.56844582,3611.4,3611.3,0.27697]
[1736071121163,0.69259976,3611.4,3611.3,0.27697]
[1736071122362,0.41562976,3611.4,3611.3,0.27697]
[1736071122865,0.69259976,3611.4,3611.3,0.27697]
[1736071124466,0.41562976,3611.4,3610.9,7.98526402]
[1736071124665,0.277,3611.0,3610.9,7.98526402]
[1736071125068,0.277,3611.0,3610.9,4.77746402]
[1736071125965,0.41562976,3611.4,3610.9,7.98526402]
[1736071126168,0.41562976,3611.4,3611.3,3.48477]
[1736071126368,0.69259976,3611.4,3611.3,3.48477]
[1736071126568,0.41562976,3611.4,3611.3,3.48477]
[1736071126769,0.4212,3611.6,3611.3,3.2078]
[1736071126969,0.27697,3611.4,3611.3,3.2078]
[1736071127358,0.8464,3611.5,3611.3,3.48477]
[1736071127572,0.27697,3611.4,3611.3,3.2078]
[1736071128072,0.8464,3611.5,3611.3,3.2078]
[1736071128369,3.93837478,3611.4,3611.3,3.48477]
[1736071128567,3.66140478,3611.4,3611.3,3.48477]
[1736071128769,3.93837478,3611.4,3611.3,3.48477]
[1736071129471,3.93837478,3611.4,3611.3,3.2078]
[1736071129865,3.93837478,3611.4,3611.3,3.48477]
[1736071130070,3.93837478,3611.4,3611.3,3.2078]
[1736071130474,0.27699,3611.1,3611.0,4.35426402]
[1736071131177,0.277,3611.0,3610.9,3.631]
[1736071131466,0.6911,3611.0,3610.9,3.631]
[1736071132064,0.6911,3611.0,3610.9,3.2078]
[1736071132467,4.35179798,3611.0,3610.9,3.2078]
[1736071132680,4.07479798,3611.0,3610.9,3.4848]
[1736071132975,3.66069798,3611.0,3610.9,3.4848]
[1736071133971,3.24509537,3611.1,3611.0,0.277]
[1736071134170,3.24509537,3611.1,3611.0,4.51629317]
[1736071135175,3.24509537,3611.4,3611.3,0.27697]
[1736071135377,3.24509537,3611.4,3611.3,3.48477]
[1736071135970,3.24509537,3611.4,3611.3,0.27697]
[1736071136279,3.93764845,3611.5,3611.3,3.2078]
[1736071136475,3.93764845,3611.5,3611.4,0.27697]
[1736071137176,3.66068845,3611.5,3611.4,0.27697]
[1736071137765,3.66068845,3611.5,3611.4,4.95786317]
[1736071139079,3.24509537,3611.6,3611.5,0.27696]
[1736071140581,3.66068845,3611.7,3611.6,0.27695]
[1736071140768,2.98498845,3611.7,3611.6,0.27695]
[1736071140971,0.73138845,3611.7,3611.6,0.27695]
[1736071141480,4.32773623,3611.9,3611.8,0.27693]
[1736071141671,4.32773623,3611.9,3611.8,3.48473]
[1736071141870,0.2769,3612.3,3612.2,0.2769]
[1736071142070,0.2769,3612.3,3612.2,3.4847]
[1736071142478,4.32773623,3612.6,3612.2,3.2078]
[1736071142675,0.27689,3612.4,3612.3,0.2769]
[1736071142976,0.27689,3612.4,3612.2,3.2078]
[1736071143178,0.27689,3612.4,3612.3,0.2769]
[1736071143374,0.2769,3612.3,3612.2,3.4847]
[1736071143882,0.27689,3612.4,3612.3,0.27689]
[1736071144083,0.27689,3612.4,3612.2,3.2078]
[1736071144277,0.4441,3612.5,3612.2,3.4847]
[1736071144473,0.4441,3612.5,3612.2,3.2078]
[1736071144981,0.2769,3612.3,3612.2,3.4847]
[1736071145169,0.2769,3612.3,3612.2,3.2078]
[1736071146379,0.4441,3612.5,3612.4,0.27689]
[1736071146567,0.4338,3612.7,3612.2,3.2078]
[1736071146774,0.27688,3612.5,3612.3,0.71049]
[1736071147077,0.4338,3612.7,3612.2,7.72399317]
[1736071147377,0.27688,3612.5,3612.3,0.2769]
[1736071147675,0.27688,3612.6,3612.4,0.27688]
[1736071148078,0.27689,3612.4,3612.3,0.27689]
[1736071148274,0.2769,3612.3,3612.2,3.2078]
[1736071149579,0.8295,3612.9,3612.2,3.2078]
[1736071149883,0.27688,3612.6,3612.4,0.27688]
[1736071150179,7.82210803,3612.9,3612.3,4.23929317]
[1736071150375,0.27689,3612.4,3612.3,4.51618317]
[1736071150880,0.27689,3612.4,3612.3,4.23929317]
[1736071151180,0.27689,3612.4,3612.3,4.51619317]
[1736071152376,4.32773623,3613.2,3612.3,4.23929317]
[1736071152576,0.27687,3612.7,3612.6,3.2078]
[1736071154682,0.8756,3613.1,3612.6,3.2078]
[1736071154882,0.27686,3612.8,3612.7,0.27687]
[1736071155183,0.27687,3612.7,3612.6,3.48467]
[1736071155580,0.27687,3612.7,3612.6,3.2078]
[1736071155781,0.27687,3612.7,3611.7,6.52279033]
[1736071155782,0.8756,3613.1,3612.2,3.2078]
[1736071155981,0.2769,3612.3,3612.2,3.2078]
[1736071156183,0.27691,3612.1,3612.0,4.34852688]
[1736071156884,0.27691,3612.1,3612.0,3.67282688]
[1736071157282,7.16946004,3612.1,3612.0,3.67282688]
[1736071157887,0.27693,3611.8,3611.7,6.52279033]
[1736071158087,6.89255004,3612.1,3611.4,3.2078]
[1736071158283,0.27699,3611.1,3611.0,3.6265]
[1736071158677,0.27699,3611.1,3611.0,3.2078]
[1736071166890,0.277,3611.0,3610.9,3.6293]
[1736071167280,0.277,3611.0,3610.9,3.2078]
[1736071167483,0.27703,3610.6,3610.5,0.4187]
[1736071168285,0.27703,3610.6,3610.5,0.69573]
[1736071168590,0.27703,3610.6,3610.5,0.4187]
[1736071171490,0.27703,3610.5,3610.4,3.2078]
[1736071175891,0.27707,3610.0,3609.9,4.0656]
[1736071176296,0.27707,3610.1,3609.9,4.34267]
[1736071177196,0.69257,3610.6,3609.9,4.34267]
[1736071177393,0.27707,3610.0,3609.9,4.0656]
[1736071181198,0.27707,3610.0,3609.9,4.34268]
[1736071181600,0.27707,3610.0,3609.9,4.0656]
[1736071182206,0.27707,3610.0,3609.9,4.34268]
[1736071182807,0.27707,3610.0,3609.9,4.0656]
[1736071189712,0.27707,3610.0,3609.9,3.2078]
[1736071191709,0.27708,3609.9,3609.8,3.2078]
[1736071195719,0.27707,3610.1,3610.0,0.27707]
[1736071196720,0.27707,3610.1,3610.0,0.71277]
[1736071197008,0.4267,3610.3,3610.0,0.71277]
[1736071197009,0.27706,3610.2,3610.1,0.27706]
[1736071197313,0.27706,3610.2,3610.1,0.72576]
[1736071198413,3.90038,3610.6,3610.1,0.72576]
[1736071198414,3.2078,3610.6,3610.1,0.4487]
[1736071198607,0.27704,3610.5,3610.4,0.27704]
[1736071199514,0.4143,3610.7,3610.3,3.2078]
[1736071199712,0.27704,3610.4,3610.3,3.48484]
[1736071200008,0.27704,3610.5,3610.4,0.27704]
[1736071200215,0.27702,3610.8,3610.7,0.27701]
[1736071200516,0.27702,3610.8,3610.7,3.2078]
[1736071200714,0.27701,3610.9,3610.8,0.27701]
[1736071200911,0.27701,3610.9,3610.8,1.14591]
[1736071201214,0.27701,3610.9,3610.8,0.8689]
[1736071201714,0.27701,3610.9,3610.8,1.14591]
[1736071201910,0.27701,3610.9,3610.8,0.8689]
[1736071202317,2.43644271,3610.9,3610.8,0.8689]
[1736071205319,3.51615906,3610.9,3610.8,0.8689]
[1736071206818,3.51615906,3610.9,3610.8,0.4453]
[1736071207615,0.27704,3610.5,3610.4,0.27704]
[1736071207818,0.27703,3610.6,3610.5,0.27703]
[1736071208020,5.15042352,3610.9,3610.4,0.72624]
[1736071208823,0.27703,3610.6,3610.4,0.4492]
[1736071209221,0.27703,3610.6,3610.5,0.27703]
[1736071209924,0.27703,3610.6,3610.5,0.70933]
[1736071210120,2.16311986,3610.7,3610.5,0.4323]
[1736071210420,2.44013986,3610.7,3610.6,0.27703]
[1736071211026,0.27702,3610.7,3610.6,0.27703]
[1736071211216,2.16311986,3610.8,3610.5,0.4323]
[1736071211416,0.27703,3610.6,3610.5,3.91713]
[1736071213828,2.16311986,3610.7,3610.5,3.6401]
[1736071214118,2.44013986,3610.7,3610.6,0.27703]
[1736071215020,0.27702,3610.7,3610.6,0.27703]
[1736071215321,2.16311986,3610.8,3610.5,7.88235159]
[1736071215627,2.16311986,3610.8,3610.7,0.27702]
[1736071216622,3.2446798,3611.0,3610.5,7.88235159]
[1736071216623,5.40779966,3611.0,3610.5,7.88235159]
[1736071216822,2.16311986,3611.0,3610.9,4.51925159]
[1736071217027,2.16311986,3611.0,3610.9,5.60525159]
[1736071217824,2.44011986,3611.0,3610.9,5.60525159]
[1736071218028,0.277,3611.1,3611.0,0.277]
[1736071218231,0.277,3611.1,3611.0,1.1525]
[1736071218424,0.277,3611.1,3611.0,1.603]
[1736071219119,2.16311986,3611.2,3611.1,0.27699]
[1736071221032,0.27696,3611.5,3611.4,0.27697]
[1736071223433,0.27696,3611.5,3611.0,1.326]
[1736071223434,2.57991986,3611.7,3611.0,1.326]
[1736071223630,0.27697,3611.4,3611.3,0.27697]
[1736071223934,2.57991986,3611.7,3611.0,1.326]
[1736071224133,0.27698,3611.3,3611.2,0.27697]
[1736071224337,2.57991986,3611.7,3611.0,1.326]
[1736071224630,0.27699,3611.1,3611.0,1.60299]
[1736071224830,0.27699,3611.1,3611.0,1.326]
[1736071225037,0.277,3611.0,3610.9,3.2078]
[1736071225250,0.27702,3610.7,3610.6,6.52279033]
[1736071225448,0.277,3611.0,3610.9,0.277]
[1736071225748,0.277,3611.0,3610.9,7.72705159]
[1736071225958,0.277,3611.0,3610.9,3.2078]
[1736071226152,0.69243,3611.4,3610.5,7.45005159]
[1736071226454,0.4063,3611.5,3610.5,7.45005159]
[1736071226955,0.277,3611.0,3610.9,3.2078]
[1736071227657,0.277,3611.0,3610.9,3.6163]
[1736071229458,0.277,3611.0,3610.9,3.8933]
[1736071229649,0.277,3611.0,3610.9,3.6163]
[1736071230055,0.277,3611.0,3610.9,3.2078]
[1736071230254,0.27703,3610.6,3610.5,7.72708159]
[1736071230556,2.16311986,3611.4,3610.5,7.45005159]
[1736071230758,0.27699,3611.1,3611.0,0.27699]
[1736071230951,0.27699,3611.1,3611.0,3.48479]
[1736071231151,2.16311986,3611.3,3611.0,3.2078]
[1736071231449,0.27702,3610.7,3610.6,0.27702]
[1736071231847,0.27703,3610.7,3610.6,0.27702]
[1736071233052,3.04291986,3611.2,3610.5,4.0573]
[1736071233353,0.27701,3610.8,3610.7,0.27702]
[1736071234455,0.424,3611.0,3610.6,4.24225159]
[1736071234656,0.424,3611.0,3610.9,3.4848]
[1736071235159,2.16311986,3611.3,3610.9,4.2938]
[1736071235361,2.16311986,3611.3,3611.2,0.27698]
[1736071236662,0.424,3611.8,3611.7,0.27694]
[1736071238064,0.424,3611.8,3611.6,3.2078]
[1736071238259,0.27694,3611.7,3611.6,3.48475]
[1736071239261,0.27694,3611.7,3611.6,3.2078]
[1736071239570,0.27698,3611.3,3611.2,3.2078]
[1736071240467,0.69236,3611.7,3610.8,6.52279033]
[1736071240468,3.2078,3611.7,3610.8,6.52279033]
[1736071240670,0.277,3610.9,3610.8,6.52279033]
[1736071240970,0.277,3610.9,3610.8,0.27701]
[1736071242164,0.4401,3611.1,3610.6,4.0244]
[1736071242363,2.60321986,3611.1,3610.6,4.0244]
[1736071242870,0.277,3611.0,3610.9,0.277]
[1736071245068,2.44011986,3611.0,3610.9,0.277]
[1736071246072,2.16311986,3611.0,3610.9,0.277]
[1736071246476,2.60321986,3611.1,3611.0,0.277]
[1736071246669,2.16311986,3611.1,3611.0,0.277]
[1736071246868,2.16311986,3611.1,3611.0,3.4848]
[1736071247673,3.28619986,3611.2,3611.0,3.2078]
[1736071247973,3.28619986,3611.2,3611.1,0.27699]
[1736071249180,0.277,3611.0,3610.9,0.277]
[1736071249372,3.00921986,3611.2,3611.0,0.27699]
[1736071249373,0.27699,3611.1,3611.0,0.27699]
[1736071250273,2.44010986,3611.1,3611.0,0.27699]
[1736071250776,2.16311986,3611.1,3610.6,4.0244]
[1736071250981,0.277,3611.0,3610.9,0.277]
[1736071251884,2.16311986,3611.1,3610.6,4.0244]
[1736071252179,2.44010986,3611.1,3611.0,0.277]
[1736071252882,0.27699,3611.1,3611.0,0.277]
[1736071253280,4.0907798,3611.2,3610.6,4.0244]